Cogmind - Beta 15 @@@ ROGUE MODE // 2025.06.13 @ 17:55:18 Player: Singularius Result: Destroyed by D-53 Grenadier with Mini Grenade Launcher Performance ------------- Evolutions (0) 0 Regions Visited (2) 400 Robots Destroyed (10) 50 Value Destroyed (160) 160 Prototype IDs (2) 40 Alien Tech Used (0) 0 Bonus (0) 0 TOTAL SCORE: 650 Bonus ------- None Cogmind --------- Core Integrity 0/250 Matter 300/300 Energy 100/100 System Corruption 11% Temperature Cool (0) Movement Treading (160) Location -10/Mines Parts ------- > --- POWER (1) -------- (None) > --- PROPULSION (2) --- Light Treads Light Treads > --- UTILITY (2) ------ Large Storage Unit > --- WEAPON (2) ------- (None) > --- INVENTORY (15) --- Ion Engine Ion Engine Ion Engine Light Treads Light Treads Aluminum Leg Aluminum Leg Medium Storage Unit Sensor Array Sensor Array Signal Interpreter Signal Interpreter Light Armor Plating Small Laser Mining Laser Peak State ------------ > --- POWER ------------ Light Nuclear Core > --- PROPULSION ------- Light Treads Light Treads > --- UTILITY ---------- Large Storage Unit Seismic Detector > --- WEAPON ----------- Small Laser Assault Rifle > --- INVENTORY -------- Ion Engine Ion Engine Light Treads Aluminum Leg Aluminum Leg Small Storage Unit Signal Interpreter Light Armor Plating Small Laser Light Assault Rifle [Rating: 10] Favorites ----------- Power Light Nuclear Core Engine Ion Engine Power Core Light Nuclear Core Propulsion Light Treads Treads Light Treads Utility Seismic Detector Device Seismic Detector Storage Large Storage Unit Weapon Small Laser Energy Gun Small Laser Ballistic Gun Assault Rifle Special Weapon Mining Laser Build | -11 -10 -10 ------- Run | Yrd Mat Min Slots Evolved . | . . . Power . | . . . Propulsion . | . . . Utility . | . . . Weapon . | . . . Parts Attached 14 | 7 7 . Power 2 | 1 1 . Engine 1 | 1 . . Core 1 | . 1 . Reactor . | . . . Propulsion 4 | 2 2 . Treads 4 | 2 2 . Leg . | . . . Wheel . | . . . Hover . | . . . Flight . | . . . Utility 3 | 2 1 . Device 1 | 1 . . Storage 2 | 1 1 . Processor . | . . . Hackware . | . . . Protection . | . . . Artifact . | . . . Weapon 5 | 2 3 . Energy Gun 2 | 1 1 . Energy Cannon . | . . . Ballistic Gun 2 | 1 1 . Ballistic Cannon . | . . . Launcher . | . . . Special Weapon 1 | . 1 . Impact Weapon . | . . . Slashing Weapon . | . . . Piercing Weapon . | . . . Special Melee Weapon . | . . . Unidentified Prototypes . | . . . Corrupted Parts 1 | . 1 . System Corruption 9 | . 9 . Parts Lost 5 | . 1 4 Power 1 | . . 1 Propulsion 1 | . 1 . Utility 1 | . . 1 Weapon 2 | . . 2 Highest Loss Streak 4 | . 1 4 To Critical Strikes . | . . . Average Backups 11 | 3 12 15 Power 2 | . 2 3 Propulsion 3 | 1 3 4 Utility 4 | . 4 6 Weapon 1 | . 1 2 Tool/Special . | . . . Unused Backups 13 | . 1 12 Power 2 | . . 2 Propulsion 3 | . . 3 Utility 7 | . 1 6 Weapon 1 | . . 1 Tool/Special . | . . . Average Slot Usage (%) 97 | . 97 96 Engine 2 | . 2 . Core 11 | . 11 12 Treads 25 | . 25 28 Device 13 | . 14 12 Storage 14 | . 14 14 Energy Gun 13 | . 13 14 Ballistic Gun 13 | . 13 14 Peak Build Rating 10 | 7 10 10 Average Rating 8 | 5 9 9 On Entrance 5 | . 7 10 Naked Turns . | . . . Heaviest Build 29 | 14 29 28 Greatest Support 40 | 40 40 40 Greatest Overweight (x) 1 | . 1 . Average Overweight (x) . | . . . Largest Inventory Capacity 15 | 8 15 15 Average Capacity 13 | 7 14 15 Most Carried 15 | 5 15 15 Average Carried 11 | 3 12 15 Final Capacity 15 | 8 15 15 Final Carried 15 | 4 15 15 Class Distribution -------------------- 100% | Mutant Dominant Class ---------------- Mutant | -10/Materials Mutant | -10/Mines Resources | -11 -10 -10 ----------- Run | Yrd Mat Min Matter Collected 536 | 243 293 . Remotely . | . . . Salvage Created 241 | 14 227 . Parts 19 | 2 17 . Haulers Intercepted 1 | . 1 . Recyclers Shooed . | . . . Parts Field Recycled . | . . . Retrieved Matter . | . . . Parts Self-Destructed . | . . . Prevented . | . . . Kills | -11 -10 -10 ------- Run | Yrd Mat Min Combat Hostiles Destroyed 8 | . 8 . Guns 8 | . 8 . Classes Destroyed 4 | 1 3 . Tunneler 1 | 1 . . Hauler 1 | . 1 . Swarmer 6 | . 6 . Grunt 2 | . 2 . Best Kill Streak 3 | 1 3 . Combat Bots Only 3 | . 3 . Max Kills in Single Turn 1 | 1 1 . Gunslinging . | . . . Exploded . | . . . Melee . | . . . Uniques/NPCs Destroyed . | . . . Combat | -11 -10 -10 -------- Run | Yrd Mat Min Hostile Shots Fired 84 | . 65 19 Missed 27 | . 22 5 Hits 57 | . 43 14 Projectile 57 | . 43 14 AOE 14 | . . 14 Critical Strikes 1 | . 1 . Damage Taken 1009 | . 478 531 Core 262 | . 106 156 Absorbed by Shields . | . . . Core Remaining (%) 100 | 100 . . Volleys Fired 47 | 8 39 . Largest 2 | 2 2 . Hottest 100 | 60 100 . Shots Fired 94 | 16 78 . Gun 93 | 16 77 . Cannon . | . . . Launcher . | . . . Special 1 | . 1 . Kinetic 47 | 8 39 . Thermal 47 | 8 39 . Explosive . | . . . Electromagnetic . | . . . Robot Hit Streak 36 | 5 36 . Robot Miss Streak 3 | 1 3 . Penetration Max . | . . . Secondary Targets . | . . . Shots Hit Robots 66 | 12 54 . Core Hits 17 | 1 16 . Critical Kills . | . . . Critical Parts Destroyed . | . . . Critical Strikes . | . . . Melee Attacks . | . . . Impact . | . . . Slashing . | . . . Piercing . | . . . Sneak Attacks . | . . . Combat Hostiles . | . . . Follow-up Attacks . | . . . Damage Inflicted 796 | 140 656 . Guns 796 | 140 656 . Cannons . | . . . Explosions . | . . . Melee . | . . . Ramming . | . . . Kinetic 435 | 71 364 . Thermal 361 | 69 292 . Explosive . | . . . Electromagnetic . | . . . Impact . | . . . Slashing . | . . . Piercing . | . . . Highest Corruption 11 | . 11 11 Average Corruption 10 | . 10 11 Corruption Purged . | . . . Corruption Blocked . | . . . Effects 26 | . 24 2 Message Errors 7 | . 7 . Matter Fused 4 | . 3 1 Heat Flow Errors 2 | . 2 . Energy Discharges 3 | . 2 1 Parts Rejected 1 | . 1 . Data Loss (minor) 6 | . 6 . Misfires 1 | . 1 . Alerts 1 | . 1 . Misdirections 1 | . 1 . Overload Shots . | . . . Overflow Damage . | . . . Projectiles . | . . . Explosions . | . . . Melee . | . . . Knockbacks . | . . . Impact . | . . . Kinetic . | . . . Secondary . | . . . Self-Inflicted Damage . | . . . Shots . | . . . Rammed . | . . . Targets Rammed . | . . . Kicked . | . . . Crushed . | . . . Highest Temperature 218 | . 218 . Average Temperature 43 | . 43 . Received Heat Transfer 114 | . 102 12 Siege Activations . | . . . Martial Activations . | . . . Shielding Activations . | . . . Robots Disrupted . | . . . Combat Hostiles . | . . . Robots Corrupted . | . . . Combat Hostiles . | . . . Parts Fried . | . . . Impact Corruptions . | . . . Robots Melted . | . . . Combat Hostiles . | . . . Parts Melted 3 | . 3 . Heat Transferred 825 | 150 675 . Parts Sabotaged . | . . . Parts Stolen . | . . . Parts Stripped . | . . . Power Chain Reactions . | . . . Alert | -11 -10 -10 ------- Run | Yrd Mat Min Maximum Alert Level . | . . . Low Security (%) 100 | 100 100 100 Level 1 . | . . . Level 2 . | . . . Level 3 . | . . . Level 4 . | . . . Level 5 . | . . . High Security . | . . . Max Security . | . . . Peak Influence 81 | 5 81 . Initial . | . . . Average 13 | . 15 . Influence Increases 248 | 5 243 . Destroy 0b10 Robot/C 160 | . 160 . Destroy 0b10 Robot/NC 10 | 5 5 . Destroy Leader 32 | . 32 . Disable Machine 15 | . 15 . Destroy Structure 1 | . 1 . Lose Combat Pursuer 30 | . 30 . Influence Decreases 248 | 5 243 . Time Decay 248 | 5 243 . Squads Dispatched . | . . . Investigation . | . . . Extermination . | . . . Reinforcement . | . . . Assault . | . . . Garrison . | . . . Intercept . | . . . Searches Triggered . | . . . Construction Impeded . | . . . Haulers Reinforced . | . . . Active Scanning Responses . | . . . Cargo Convoy Interrupts . | . . . Stealth | -11 -10 -10 --------- Run | Yrd Mat Min Distress Signals . | . . . Communications Jammed . | . . . Distress Signals . | . . . Times Spotted 24 | . 19 5 Peak Tracking Total 5 | . 3 5 Tactical Retreats 1 | . 1 . Traps | -11 -10 -10 ------- Run | Yrd Mat Min Traps Triggered 4 | . 4 . Indirectly . | . . . Trap Hack Attempts . | . . . Triggered . | . . . Disarmed . | . . . Reprogrammed . | . . . Reused . | . . . Traps Extracted . | . . . Installed . | . . . Triggered . | . . . Machines | -11 -10 -10 ---------- Run | Yrd Mat Min Machines Disabled 1 | . 1 . Max in Single Turn 1 | . 1 . Machines Repaired . | . . . Machines Dismantled . | . . . Machines Sabotaged . | . . . Overloaded Fab Kills . | . . . Hacking | -11 -10 -10 --------- Run | Yrd Mat Min Machines Accessed 4 | . 4 . Terminals 3 | . 3 . Fabricators . | . . . Repair Stations . | . . . Recycling Units 1 | . 1 . Scanalyzers . | . . . Garrison Access . | . . . Total Hacks 6 | . 6 . Successful 4 | . 4 . Failed 2 | . 2 . Catastrophic 1 | . 1 . Database Lockouts . | . . . Manual . | . . . Terminals 5 | . 5 . Fabricators . | . . . Repair Stations . | . . . Recycling Units 1 | . 1 . Scanalyzers . | . . . Garrison Access . | . . . Terminal Hacks 3 | . 3 . Prototype ID Bank 1 | . 1 . Locate Traps 1 | . 1 . Security Status 1 | . 1 . Fabricator Hacks . | . . . Repair Station Hacks . | . . . Recycling Unit Hacks 1 | . 1 . Retrieve Components 1 | . 1 . Scanalyzer . | . . . Garrison Access Hacks . | . . . Unauthorized Hacks . | . . . Terminals . | . . . Fabricators . | . . . Repair Stations . | . . . Recycling Units . | . . . Scanalyzers . | . . . Garrison Access . | . . . Data Cores Recovered . | . . . Used . | . . . Hacking Detections 2 | . 2 . Full Trace Events . | . . . Feedback Events . | . . . Feedback Blocked . | . . . Robot Schematics Acquired . | . . . Robots Built . | . . . Authchips . | . . . Time . | . . . Total Robot Build Rating . | . . . Part Schematics Acquired . | . . . Parts Built . | . . . Authchips . | . . . Time . | . . . Total Part Build Rating . | . . . Parts Repaired . | . . . Time . | . . . Parts Recycled . | . . . Recycled Matter . | . . . Retrieved Matter . | . . . Retrieved Components 1 | . 1 . Parts Scanalyzed . | . . . Part Schematics Acquired . | . . . Parts Damaged . | . . . Bothacking | -11 -10 -10 ------------ Run | Yrd Mat Min Used RIF Installer . | . . . Robots Hacked . | . . . Non-combat . | . . . Combat . | . . . Robot Hacks Applied . | . . . Relay Couplers Released . | . . . Fabnet Peak Effective % . | . . . Robots Rewired . | . . . Allies Hacked . | . . . Hacks Repelled . | . . . Allies | -11 -10 -10 -------- Run | Yrd Mat Min Total Allies . | . . . Largest Group . | . . . Highest-Rated Group . | . . . Highest-Rated Ally . | . . . Total Orders . | . . . Ally Attacks . | . . . Total Damage . | . . . Kills . | . . . Allies Corrupted . | . . . Allies Melted . | . . . Intel | -11 -10 -10 ------- Run | Yrd Mat Min Active Infowar (turns) 1425 | 49 1322 54 Seismic 1425 | 49 1322 54 Robot Analysis Total . | . . . Derelict Logs Recovered . | . . . Drone Launches . | . . . Drone Recoveries . | . . . Exploration | -11 -10 -10 ------------- Run | Yrd Mat Min Turns Passed 1533 | 145 1322 66 Spaces Moved 770 | 68 662 40 Core 2 | 2 . . Treads 768 | 66 662 40 Legs . | . . . Wheels . | . . . Hover . | . . . Flight . | . . . Fastest Speed 50 | 50 160 160 Average Speed 168 | 156 170 160 Slowest Speed 240 | 160 240 160 Overloaded Moves . | . . . Propulsion Burnouts . | . . . Robots Hopped . | . . . Potential Cave-ins . | . . . Cave-ins Triggered . | . . . Exploration Rate (%) 36 | 5 89 15 Regions Visited 2 Branch Regions 1 Pre-discovered Areas . | . . . Known Exits Taken . | . . . Unknown Exits Taken 2 | 1 1 . Scrap Searched . | . . . Spaces Dug . | . . . Terrain Destroyed . | . . . Melee . | . . . Projectile . | . . . AOE . | . . . Terrain Rammed . | . . . Walls Destroyed . | . . . Machines Disabled . | . . . Actions | -11 -10 -10 --------- Run | Yrd Mat Min Total 905 | 88 775 42 Wait 52 | 1 49 2 Move 768 | 67 661 40 Hop . | . . . Pick Up 17 | 5 12 . Fast Attach 11 | 6 5 . Attach 3 | 1 2 . Detach . | . . . Swap 5 | . 5 . Drop 2 | . 2 . Fire 47 | 8 39 . Melee . | . . . Ram . | . . . Kick . | . . . Crush . | . . . Escape Stasis . | . . . Rewire . | . . . Trap . | . . . Miscellaneous . | . . . Route ------- -11/Scrapyard -10/Materials (discovered 3 exits: [*Mat x2] / [*Min]) -10/Mines History --------- Turn | Location | Event 6 | -11/Scrapyard | Discovered new exit (range 15) 146 | -11/Scrapyard | Entered Materials 303 | -10/Materials | Build established: Mutant 534 | -10/Materials | Discovered new exit (range 16) 697 | -10/Materials | Discovered new exit (range 10) 888 | -10/Materials | System corruption reached 10% 1277 | -10/Materials | Discovered new exit (range 13) 1468 | -10/Materials | Entered Mines 1469 | -10/Mines | Assembled infested the area 1474 | -10/Mines | Assisted by a Guerilla fighting off Assembled 1513 | -10/Mines | Core integrity fell below 50% 1531 | -10/Mines | Core integrity fell below 20% 1534 | -10/Mines | Destroyed by D-53 Grenadier with Mini Grenade Launcher Last Messages --------------- 01482_ T-07 Excavator is excavating. 01491_ System corrupted: Matter fused (-7). 01494_ T-07 Excavator is excavating. 01496_ K-01 Serf destroyed. 01498_ T-07 Excavator is excavating. 01500_ The unstable cave ceiling collapses. 01500_ IM-2RB(h) destroyed. 01501_ K-01 Serf collects debris. 01503_ T-07 Excavator is excavating. 01506_ The unstable cave ceiling collapses. 01507_ T-07 Excavator is excavating. 01513_ System corrupted: Energy discharge (-36). 01519_ as-91597 destroyed. 01520_ T-07 Excavator is excavating. 01521_ Lgt. Nuclear Core destroyed. 01521_ T-07 Excavator destroyed. 01522_ Seismic Detector destroyed. 01528_ Core Extractor disabled. 01532_ Sml. Laser destroyed. 01532_ Lgt. Assault Rifle destroyed. Map ----- +----------------------------------------------------+ | ?????????????????????????????????????????????????? | | ????????????????????????? ???????????????????????? | | ????????????????????????? ???????????????????????? | | ????????????????????????? ???????????????????????? | | ????????????????????????# ???????????????????????? | | ???????????????????????? ???????????????????????? | | ???????????????????????# #???????????????????????? | | ???????????????????????# #???????????????????????? | | ???????????????????????# #???????????????????????? | | ???????????????????????# #???????????????????????? | | ???????????????????????# #???????????????????????? | | ???????????????????????#a#???????????????????????? | | ?????????????????????### ###?????????????????????? | | ??????????????????#### ###????????#########??? | | ??????????????????# ##?????### #??? | | ?????????????????## #######"" #??? | | ?????????????????# * d d #??? | | ??????????????????# = #### # #??? | | ?????????????????## #?? #??? | | ?????????????????# #?# #??? | | ?????????????????## ##?# ""###??? | | ??????????????????#### #? ###????? | | ????????????????????# #? #??????? | | ???????????????????## ## ##??????? | | ???????????????????# # # ???????? | | ???????????????????## @ # ??????? | | ????????????????????## ## ?????? | | ?????????????????????## ### ????? | | ??????????????????????# ### ##? " ## ????? | | ??????????????????????# #??####?? "%"##??????? | | ??????????????????????# #???????? " #???????? | | ??????????????????????# ????????? % ##???????? | | ??????????????????????# ?????????? ?????????? | | ?????????????????????? ????????????????????????? | | ?????????????????????? ????????????????????????? | | ?????????????????????## ????????????????????????? | | ??????????????????????###????????????????????????? | | ?????????????????????????????????????????????????? | | ?????????????????????????????????????????????????? | | ?????????????????????????????????????????????????? | | ?????????????????????????????????????????????????? | | ?????????????????????????????????????????????????? | | ?????????????????????????????????????????????????? | | ?????????????????????????????????????????????????? | | ?????????????????????????????????????????????????? | | ?????????????????????????????????????????????????? | | ?????????????????????????????????????????????????? | | ?????????????????????????????????????????????????? | | ?????????????????????????????????????????????????? | | ?????????????????????????????????????????????????? | +----------------------------------------------------+ Best States ------------- Heat Dissipation 25 Energy Generation 14 Energy Capacity 250 Matter Stores 300 Matter Capacity 300 Sight Range 16 Terrain Scan Density 10 Evasion (%) 40 Recoil Reduction 2 Item Schematics ----------------- None Robot Schematics ------------------ None Fabricated ------------ Nothing Repaired ---------- Nothing Alien Tech Used ----------------- None Achievements -------------- None Challenges ------------ None Game ------ Seed PoweredDisintegrationAirjet Manual? 0 Play Time 00:16:31 Cumulative 62.4 hours Start 2025.06.13 @ 00:33:13 End 2025.06.13 @ 17:55:18 Sessions 3 Manual Loads 0 Difficulty Rogue Special Mode None Game No. 48 Rogue 48 Adventurer 0 Explorer 0 Win Type - Total 0 Types 0/0/0/0/0/0/0/0/0/0 Lore% 22 Gallery% 32 Achievement% 26 Wizard Run 0 Options --------- Layout 1 ASCII 0 Keyboard 0 Movement Numpad Keybinds 0 Fullscreen 1 Font 24/Smallcaps Map View 50x35 Zoom Use 0% Tactical HUD 1 Map Filters NONE Filters NONE Steam 1 RUN: 50632e93-52ab-41d5-81ae-de87098adbc9